bitfinex-derivatives/quotes_SOLF0:USTF0_20250730
["timestamp","ask_amount","ask_price","bid_price","bid_amount"]
[1753876581169,5.656,176.81,176.8,3.17]
[1753876581567,4.65232645,176.84,176.78,3.07]
[1753876581762,4.5492662,176.83,176.79,3.07]
[1753876581961,4.65232645,176.84,176.75,4.65232645]
[1753876582169,4.65232645,176.86,176.78,3.07]
[1753876582369,4.54925043,176.85,176.78,3.07]
[1753876582569,4.65232645,176.86,176.78,3.07]
[1753876582768,4.6564235,176.91,176.78,3.07]
[1753876582769,4.54995082,176.85,176.78,3.07]
[1753876582971,4.65232645,176.9,176.81,3.07]
[1753876583273,4.65232645,176.88,176.81,3.07]
[1753876583473,5.6546,176.86,176.81,3.07]
[1753876583871,4.65232645,176.88,176.81,3.07]
[1753876584072,5.6542,176.87,176.81,5.6557]
[1753876584273,5.6542,176.87,176.82,3.07]
[1753876584873,5.6545,176.86,176.82,3.07]
[1753876585068,4.65232645,176.9,176.82,3.07]
[1753876585573,4.65232645,176.88,176.82,3.07]
[1753876586167,4.6564235,176.94,176.8,3.07]
[1753876586168,4.65232645,176.86,176.8,3.07]
[1753876586774,5.6552,176.84,176.8,3.07]
[1753876587971,5.6548,176.85,176.8,3.07]
[1753876588178,4.65232645,176.88,176.8,3.07]
[1753876589173,4.65232645,176.86,176.8,3.07]
[1753876589374,5.6553,176.84,176.8,3.07]
[1753876589568,4.65232645,176.86,176.77,4.65232645]
[1753876589775,4.65232645,176.88,176.78,3.07]
[1753876589970,5.6549,176.85,176.8,5.6561]
[1753876590276,4.65232645,176.88,176.78,3.07]
[1753876590477,5.6552,176.84,176.79,5.6565]
[1753876590673,5.6552,176.84,176.8,3.07]
[1753876590876,5.6552,176.84,176.82,3.07]
[1753876591076,5.6552,176.84,176.83,3.07]
[1753876591274,4.65232645,176.86,176.78,3.07]
[1753876591679,5.6553,176.84,176.78,8.7269]
[1753876591875,4.65232645,176.88,176.78,3.07]
[1753876592074,4.65232645,176.9,176.79,4.65232645]
[1753876592280,4.65232645,176.9,176.82,3.07]
[1753876592281,5.6544,176.86,176.82,3.07]
[1753876592580,4.65232645,176.9,176.82,3.07]
[1753876592879,4.65232645,176.88,176.82,3.07]
[1753876593187,4.65232645,176.84,176.76,3.07]
[1753876593479,5.656,176.81,176.77,3.07]
[1753876593679,4.6564235,176.91,176.69,11.3196]
[1753876593680,4.65232645,176.88,176.69,3.07]
[1753876593871,5.6565,176.8,176.74,5.6581]
[1753876594180,5.6565,176.8,176.78,3.07]
[1753876594379,5.6561,176.81,176.76,5.6575]
[1753876594575,5.6561,176.81,176.77,3.07]
[1753876594776,4.65232645,176.82,176.74,3.07]
[1753876594974,4.65232645,176.85,176.78,3.07]
[1753876595178,4.65232645,176.87,176.78,3.07]
[1753876595484,5.6538,176.88,176.83,5.6553]
[1753876595682,4.65232645,176.91,176.84,3.07]
[1753876596277,4.65232645,176.89,176.84,3.07]
[1753876596477,5.6543,176.87,176.84,3.07]
[1753876596677,5.6543,176.87,176.83,3.07]
[1753876596874,5.6543,176.87,176.85,3.07]
[1753876597374,4.65232645,176.89,176.82,5.6556]
[1753876597579,4.65232645,176.89,176.82,3.07]
[1753876598178,5.6546,176.86,176.79,108.16]
[1753876598486,4.65232645,176.89,176.8,3.07]
[1753876598785,5.6543,176.87,176.82,5.6556]
[1753876598990,5.6543,176.87,176.79,108.16]
[1753876599287,5.6544,176.86,176.8,3.07]
[1753876599586,5.6544,176.86,176.8,8.7262]
[1753876599789,5.6544,176.86,176.8,3.07]
[1753876599983,4.65232645,176.89,176.8,3.07]
[1753876600384,4.65232645,176.89,176.8,7.72232645]
[1753876600582,4.65232645,176.87,176.81,3.07]
[1753876600780,4.65232645,176.85,176.81,3.07]
[1753876601289,4.6564235,176.91,176.68,397.42]
[1753876601290,4.65232645,176.83,176.75,3.07]
[1753876601586,5.6562,176.81,176.75,8.7277]
[1753876601787,5.6562,176.81,176.76,3.07]
[1753876602988,5.6564,176.8,176.76,3.07]
[1753876603291,4.65232645,176.83,176.76,3.07]
[1753876603481,5.6565,176.8,176.77,3.07]
[1753876603790,4.65232645,176.81,176.78,3.07]
[1753876604091,4.65232645,176.81,176.74,113.5981]
[1753876604288,4.65232645,176.79,176.75,3.07]
[1753876604489,4.65232645,176.81,176.76,3.07]
[1753876604992,5.656,176.81,176.77,3.07]
[1753876605791,5.6558,176.82,176.77,3.07]
[1753876605988,4.65232645,176.85,176.75,4.65232645]
[1753876606192,4.50803842,176.84,176.78,3.07]
[1753876606392,10.16363842,176.83,176.78,3.07]
[1753876606594,5.6556,176.83,176.78,3.07]
[1753876606889,4.65232645,176.83,176.79,3.07]
[1753876607089,4.65232645,176.83,176.75,5.6577]
[1753876607290,4.65232645,176.83,176.76,3.07]
[1753876607993,5.6558,176.82,176.77,3.07]
[1753876608187,4.65232645,176.83,176.77,3.07]
[1753876608593,4.51606106,176.82,176.77,3.07]
[1753876608895,5.6559,176.82,176.77,3.07]
[1753876609192,4.65232645,176.83,176.77,3.07]
[1753876609392,4.51905427,176.82,176.77,3.07]
[1753876609589,5.6562,176.81,176.77,3.07]
[1753876610394,5.6558,176.82,176.77,3.07]
[1753876610592,4.52091237,176.81,176.77,3.07]
[1753876610793,4.65232645,176.83,176.78,3.07]
[1753876611089,4.52052067,176.82,176.78,3.07]
[1753876611296,10.30792645,176.83,176.78,3.07]
[1753876611595,4.65232645,176.85,176.79,3.32]
[1753876611894,4.51631256,176.84,176.79,3.32]
[1753876612094,4.51631256,176.83,176.79,3.32]
[1753876612390,10.30732645,176.85,176.79,3.32]
[1753876612592,4.51580062,176.84,176.8,5.6562]
[1753876612793,4.51580062,176.83,176.81,3.32]
[1753876613086,10.30732645,176.85,176.81,3.32]
[1753876613292,4.51580062,176.84,176.81,3.32]
[1753876613490,4.51580062,176.83,176.81,3.32]
[1753876613690,10.30732645,176.85,176.81,3.32]
[1753876613987,10.17098144,176.84,176.81,3.32]
[1753876614193,4.51578144,176.83,176.82,3.32]
[1753876615688,4.65232645,176.85,176.8,5.6563]
[1753876615689,4.65232645,176.85,176.83,3.32]
[1753876615995,4.51707767,176.84,176.83,3.32]
[1753876616189,10.30732645,176.85,176.83,3.32]
[1753876616383,17.26113405,176.91,176.74,107.94]
[1753876616384,4.52081267,176.84,176.81,5.656]
[1753876616589,5.6548,176.86,176.81,5.656]
[1753876616789,4.52081267,176.85,176.81,5.656]
[1753876616988,5.6548,176.86,176.82,3.32]
[1753876617189,4.52097128,176.85,176.82,3.32]
[1753876617390,5.6549,176.85,176.82,3.32]
[1753876617685,4.65232645,176.87,176.82,8.9758]
[1753876617894,4.52320077,176.86,176.83,3.32]
[1753876618093,4.64312996,176.89,176.83,3.32]
[1753876618094,4.65232645,176.89,176.83,3.32]
[1753876618295,4.52329476,176.88,176.84,3.32]
[1753876618496,4.52329476,176.87,176.84,3.32]
[1753876618692,4.52329476,176.86,176.84,3.32]
[1753876618896,4.52329476,176.86,176.81,4.65232645]
[1753876618897,9.29545641,176.93,176.85,3.32]
[1753876619092,8.9858635,176.92,176.85,3.32]
[1753876619294,9.1773736,176.91,176.86,3.32]
[1753876619598,9.1773736,176.91,176.87,3.32]
[1753876619599,4.52504715,176.9,176.87,3.32]
[1753876619898,4.52504715,176.9,176.83,3.32]
[1753876620094,4.52504715,176.89,176.85,5.6546]
[1753876620299,4.64312996,176.93,176.83,3.32]
[1753876620498,4.65232645,176.9,176.83,3.32]
[1753876620692,4.52641363,176.89,176.84,5.6551]
[1753876620895,4.65232645,176.9,176.85,3.32]
[1753876621096,4.65232645,176.92,176.85,3.32]
[1753876621301,4.52616847,176.91,176.85,3.32]
[1753876621499,4.52616847,176.9,176.85,3.32]
[1753876621701,5.6538,176.89,176.85,3.32]
[1753876621895,4.65232645,176.92,176.87,3.32]
[1753876622099,5.6524,176.93,176.87,3.32]
[1753876622301,4.5263699,176.92,176.9,5.653]
[1753876622501,4.65232645,176.96,176.91,3.32]
[1753876622699,4.64312996,176.98,176.91,3.32]
[1753876622700,4.52825318,176.95,176.91,3.32]
[1753876623001,9.29545641,177.0,176.91,3.32]
[1753876623201,10.17978798,176.99,176.91,7.97232645]
[1753876623405,4.52908798,176.98,176.92,3.32]
[1753876623601,5.6507,176.99,176.92,3.32]
[1753876623796,5.6508,176.98,176.94,3.32]
[1753876624000,5.6508,176.98,176.95,3.32]
[1753876624202,5.6508,176.98,176.96,3.32]
[1753876624498,5.651,176.97,176.96,3.32]
[1753876624703,5.651,176.97,176.9,3.32]
[1753876624903,4.65232645,176.97,176.9,3.32]
[1753876625404,5.6519,176.95,176.9,3.32]
[1753876625605,4.65232645,176.97,176.9,3.32]
[1753876625898,4.65232645,176.97,176.89,107.6]
[1753876625899,5.6516,176.95,176.89,113.2533]
[1753876626205,4.65232645,176.95,176.92,3.32]
[1753876626400,4.65232645,176.97,176.9,3.32]
[1753876626598,4.65232645,176.99,176.9,3.32]
[1753876626802,4.51709185,176.98,176.9,3.32]
[1753876627109,4.65232645,176.99,176.9,3.32]
[1753876627698,4.51558859,176.98,176.9,3.32]
[1753876628006,4.65232645,176.99,176.9,3.32]
[1753876628303,5.6511,176.97,176.92,5.6524]
[1753876628504,4.65232645,176.99,176.9,3.32]
[1753876629205,4.65232645,177.01,176.92,3.32]
[1753876629497,4.51184546,177.0,176.97,3.32]
[1753876629703,4.65232645,177.03,176.97,3.32]
[1753876630202,5.6499,177.01,176.97,3.32]
[1753876630500,4.65232645,176.99,176.95,3.32]
[1753876630699,4.65232645,176.99,176.93,3.32]
[1753876631107,4.65232645,177.03,176.93,3.32]
[1753876631301,4.65232645,177.03,176.93,7.97232645]
[1753876631501,4.65232645,177.03,176.94,3.32]
[1753876631701,4.65232645,177.05,176.95,4.65232645]
[1753876631896,4.65232645,177.05,176.96,3.32]
[1753876632097,4.64312996,177.08,176.96,3.32]
[1753876632413,4.65232645,177.07,176.98,3.32]
[1753876632903,5.6488,177.05,177.0,3.32]
[1753876633406,4.65232645,177.07,177.01,3.32]
[1753876634000,5.6483,177.06,177.0,5.6499]
[1753876634202,4.65232645,177.09,177.01,3.32]
[1753876634405,5.6479,177.08,177.02,5.6493]
[1753876634602,4.65232645,177.09,177.01,3.32]
[1753876635506,5.6481,177.07,177.01,8.9697]
[1753876635706,5.6481,177.07,177.02,3.32]
[1753876635908,4.65232645,177.09,177.02,3.32]
[1753876636209,4.65232645,177.09,177.03,3.32]
[1753876636807,5.6478,177.08,177.04,3.32]
[1753876636997,4.65232645,177.09,176.99,4.65232645]
[1753876637198,5.6483,177.06,177.01,5.6496]
[1753876637400,4.65232645,177.09,177.02,3.32]
[1753876637807,4.65232645,177.09,177.05,3.32]
[1753876637808,5.6474,177.09,177.05,3.32]
[1753876638004,9.29545641,177.13,177.05,3.32]
[1753876638307,7.95835324,177.12,177.05,3.32]
[1753876638511,5.6469,177.11,177.08,3.32]
[1753876638807,4.64312996,177.14,177.08,3.32]
[1753876639001,5.6464,177.12,177.03,4.65232645]
[1753876639203,17.64337764,177.13,177.03,4.65232645]
[1753876639204,4.42357828,177.11,177.1,3.32]
[1753876639402,5.6472,177.1,177.05,5.6484]
[1753876639604,4.65232645,177.13,177.06,3.32]
[1753876639805,4.42163107,177.12,177.06,3.32]
[1753876640106,5.6458,177.14,177.1,3.32]
[1753876640404,4.64312996,177.16,177.1,3.32]
[1753876640601,12.98160084,177.15,177.1,3.32]
[1753876640806,4.41924151,177.14,177.1,3.32]
[1753876641006,4.64312996,177.17,177.09,4.65232645]
[1753876641201,7.94957288,177.16,177.1,3.32]
[1753876641401,5.6449,177.17,177.1,3.32]
[1753876641607,4.4159645,177.16,177.1,3.32]
[1753876641807,4.45904123,177.15,177.11,4.65232645]
[1753876642110,4.64312996,177.2,177.14,3.17]
[1753876642412,17.42993434,177.19,177.14,3.17]
[1753876642609,23.07463434,177.18,177.14,3.17]
[1753876642811,8.87190539,177.17,177.14,3.17]
[1753876643002,4.45620581,177.16,177.11,4.65232645]
[1753876643307,4.64312996,177.2,177.02,135.7987]
[1753876643308,4.64312996,177.22,177.15,3.17]
[1753876643508,17.41861541,177.21,177.15,3.17]
[1753876643809,17.41861541,177.21,177.1,107.48]
[1753876643810,12.9653908,177.2,177.1,107.48]
[1753876644000,22.07091456,177.19,177.13,3.17]
[1753876644202,4.41351972,177.18,177.13,3.17]
[1753876644405,4.65232645,177.21,177.13,3.17]
[1753876644602,17.3984258,177.2,177.13,3.17]
[1753876644803,5.6449,177.17,177.13,3.17]
[1753876645406,4.65232645,177.21,177.13,3.17]
[1753876645607,4.65232645,177.17,177.13,3.17]
[1753876645807,5.6457,177.14,177.13,3.17]
[1753876646003,4.65232645,177.17,177.09,379.76]
[1753876646205,4.65232645,177.17,177.1,3.17]
[1753876646813,4.65232645,177.19,177.1,3.17]
[1753876647010,4.44364194,177.18,177.1,3.17]
[1753876647213,5.6446,177.18,177.14,3.17]
[1753876647714,4.64312996,177.22,177.14,3.17]
[1753876647907,12.36607298,177.21,177.14,3.17]
[1753876648215,4.442113,177.2,177.13,107.42]
[1753876648412,9.04453732,177.19,177.13,107.42]
[1753876648608,4.39225788,177.18,177.15,3.17]
[1753876648811,4.65232645,177.19,177.13,3.17]
[1753876649013,4.65232645,177.17,177.13,3.17]
[1753876649213,5.6454,177.16,177.13,3.17]
[1753876649518,5.6454,177.16,177.14,3.17]
[1753876649910,5.6455,177.15,177.14,3.17]
[1753876650106,4.65232645,177.17,177.11,107.42]
[1753876650317,4.65232645,177.15,177.1,3.17]
[1753876650510,8.8293206,177.14,177.09,379.76]
[1753876650708,4.65232645,177.17,177.1,3.17]
[1753876650907,8.83023675,177.16,177.13,3.17]
[1753876651112,4.43829886,177.15,177.13,3.17]
[1753876651310,4.64312996,177.19,177.13,3.17]
[1753876651512,5.6449,177.17,177.13,5.6459]
[1753876651814,8.83089777,177.16,177.15,3.17]
[1753876652313,9.29545641,177.23,177.15,3.17]
[1753876652509,17.36930752,177.22,177.16,3.17]
[1753876652710,17.36930752,177.21,177.16,3.17]
[1753876652908,17.36930752,177.2,177.15,107.42]
[1753876653114,12.36176081,177.19,177.16,3.17]
[1753876653315,4.44065888,177.18,177.17,3.17]
[1753876654009,4.44065888,177.18,177.17,8.8149]
[1753876654212,9.29545641,177.23,177.16,3.17]
[1753876654514,5.6445,177.19,177.16,3.17]
[1753876654714,8.83433699,177.18,177.17,3.17]
[1753876654908,5.644,177.2,177.17,3.17]
[1753876655103,8.83400107,177.19,177.16,3.17]
[1753876655310,8.83549747,177.18,177.16,3.17]
[1753876655506,8.83587584,177.17,177.16,8.8152]
[1753876655706,4.44143904,177.17,177.16,8.8152]
[1753876655910,5.6444,177.19,177.17,3.17]
[1753876656109,8.83550367,177.18,177.16,5.6452]
[1753876656307,4.64312996,177.21,177.15,113.0654]
[1753876656507,17.37974836,177.2,177.16,3.17]
[1753876656709,17.37974836,177.19,177.16,3.17]
[1753876656919,4.64312996,177.24,177.16,3.17]
[1753876657116,17.38036302,177.23,177.17,4.65232645]
[1753876657422,17.38036302,177.22,177.2,3.17]
[1753876657609,12.36798974,177.21,177.2,3.17]
[1753876659220,17.30631179,177.21,177.2,3.17]
[1753876659420,17.30631179,177.21,177.15,107.42]
[1753876659716,4.44346326,177.2,177.16,3.17]
[1753876659922,13.57205565,177.19,177.16,3.17]
[1753876660111,4.44346326,177.18,177.16,3.17]
[1753876660316,8.84521107,177.17,177.16,8.8152]
[1753876661118,12.37439767,177.17,177.16,8.8152]
[1753876661922,8.84521107,177.17,177.16,8.8152]
[1753876662122,2.20521107,177.17,177.16,8.8152]
[1753876662323,3.21,177.2,177.18,3.17]
[1753876662524,8.47447193,177.19,177.18,3.17]
[1753876663121,8.47447193,177.19,177.18,8.8146]
[1753876663520,8.47447193,177.19,177.18,5.6446]
[1753876663723,8.47447193,177.19,177.18,8.8146]
[1753876664226,3.52890863,177.19,177.18,8.8146]
[1753876664615,8.48000991,177.19,177.18,8.8146]
[1753876665331,3.52890863,177.19,177.18,8.8146]
[1753876665727,8.47488575,177.19,177.18,8.8146]
[1753876666031,4.64312996,177.23,177.22,3.17]
[1753876666228,13.09175499,177.23,177.22,110.53]
[1753876666528,13.09175114,177.23,177.22,110.53]
[1753876666828,11.68481716,177.23,177.22,110.53]
[1753876667032,3.21,177.22,177.13,2.83810883]
[1753876667327,8.8545,177.19,177.14,110.53]
[1753876667527,8.47481716,177.18,177.15,110.53]
[1753876667722,3.21,177.16,177.13,3.17]
[1753876667939,6.7385388,177.15,177.14,110.53]
[1753876668332,3.5285388,177.15,177.14,116.1759]
[1753876668530,3.21,177.17,177.14,116.1759]
[1753876668731,3.5285388,177.16,177.15,3.17]
[1753876669228,3.5285388,177.16,177.15,8.8155]
[1753876669428,3.5285388,177.18,177.15,3.17]
[1753876669627,3.5285388,177.17,177.14,107.36]
[1753876669831,3.21,177.18,177.17,3.17]
[1753876670031,6.73930232,177.18,177.17,3.17]
[1753876670833,3.52930232,177.18,177.17,3.17]
[1753876671235,3.52930232,177.18,177.17,8.8149]
[1753876673338,6.51930232,177.18,177.17,8.8149]
[1753876673933,2.99,177.17,177.15,3.18]
[1753876674133,2.99,177.17,177.16,107.36]
[1753876674335,6.51922851,177.17,177.16,107.36]
[1753876674636,15.26936205,177.17,177.16,107.36]
[1753876675332,12.27936205,177.17,177.1,4.62814779]
[1753876675538,2.99,177.15,177.13,8.8259]
[1753876675738,7.91956459,177.14,177.13,8.8259]
[1753876676139,4.36526417,177.14,177.13,8.8259]
[1753876676438,2.99,177.13,177.11,107.36]
[1753876676641,2.99,177.12,177.11,110.54]
[1753876676836,5.645,177.17,177.13,5.6461]
[1753876677031,2.99,177.14,177.13,3.18]
[1753876677231,7.3550443,177.15,177.11,107.36]
[1753876677430,2.99,177.17,177.11,107.36]
[1753876677640,15.28952709,177.16,177.12,3.18]
[1753876677843,12.29952709,177.15,177.12,3.18]
[1753876678040,2.99,177.15,177.13,5.646]
[1753876678345,2.99,177.15,177.11,107.36]
[1753876678346,2.99,177.15,177.14,3.18]
[1753876678532,15.29391953,177.15,177.14,3.18]
[1753876678841,12.30391953,177.15,177.14,3.18]
[1753876679042,12.30391953,177.15,177.14,8.8259]
[1753876679242,4.37029736,177.15,177.14,8.8259]
[1753876679436,2.99,177.17,177.16,5.6452]
[1753876679635,15.297574,177.17,177.16,116.1652]
[1753876679942,4.37238317,177.17,177.16,116.1652]
[1753876680245,2.99,177.19,177.18,3.18]
[1753876680434,2.99,177.18,177.17,8.8249]
[1753876680836,2.99,177.18,177.16,107.34]
[1753876680837,2.99,177.19,177.18,8.8246]
[1753876681038,10.92656384,177.19,177.18,8.8246]
[1753876681336,2.99,177.19,177.18,8.8246]
[1753876681837,2.99,177.19,177.18,3.18]
[1753876682641,2.99,177.19,177.16,107.34]
[1753876682642,2.99,177.19,177.16,116.1651]
[1753876683039,2.99,177.18,177.17,3.18]
[1753876683244,2.99,177.18,177.17,8.8248]
[1753876683548,2.99,177.18,177.17,3.18]
[1753876683747,5.6441,177.2,177.16,112.985]
[1753876683937,2.99,177.19,177.16,112.985]
[1753876684139,2.99,177.17,177.16,107.34]
[1753876684948,2.99,177.17,177.16,116.1652]
[1753876685241,4.62814779,177.21,177.16,110.52]
[1753876685436,2.99,177.18,177.17,3.18]
[1753876685638,2.99,177.18,177.17,8.8247]
[1753876685840,2.99,177.18,177.17,3.18]
[1753876686036,2.99,177.18,177.17,8.8249]
[1753876686441,5.6439,177.2,177.17,3.18]
[1753876686642,5.6438,177.21,177.17,8.8248]
[1753876686843,12.2204493,177.2,177.17,8.8248]
[1753876687042,2.99,177.2,177.17,3.18]
[1753876687347,2.99,177.2,177.17,8.8248]
[1753876688243,5.6438,177.21,177.17,8.8248]
[1753876688442,2.99,177.19,177.18,3.18]
[1753876689851,2.99,177.23,177.2,3.18]
[1753876690048,2.99,177.22,177.21,110.5]
[1753876690347,2.99,177.24,177.21,110.5]
[1753876690552,2.99,177.23,177.22,3.18]
[1753876690847,4.62814779,177.27,177.22,3.18]
[1753876690848,2.99,177.26,177.22,3.18]
[1753876691042,2.99,177.24,177.21,107.32]
[1753876691347,2.99,177.24,177.23,3.18]
[1753876691738,2.99,177.26,177.21,110.15785573]
[1753876691941,2.99,177.26,177.22,3.18]
[1753876692140,2.99,177.26,177.21,110.15785573]
[1753876692141,2.99,177.26,177.24,3.18]
[1753876692450,2.99,177.26,177.25,116.1423]
[1753876692647,2.99,177.26,177.25,110.5]
[1753876693945,2.99,177.28,177.25,116.1423]
[1753876694149,2.99,177.28,177.26,3.18]
[1753876694343,2.99,177.27,177.26,3.18]
[1753876696154,2.99,177.27,177.25,112.9621]
[1753876696356,2.99,177.27,177.25,110.5]
[1753876696550,2.99,177.28,177.25,110.5]
[1753876696750,2.99,177.27,177.25,110.5]
[1753876697053,2.99,177.26,177.25,110.5]
[1753876698148,5.6412,177.29,177.25,116.1421]
[1753876698348,2.99,177.27,177.26,3.18]
[1753876698553,2.99,177.29,177.27,3.18]
[1753876698747,2.99,177.29,177.25,110.15785573]
[1753876698748,2.99,177.29,177.28,8.8214]
[1753876698959,2.83785573,177.34,177.29,3.18]
[1753876698960,2.99,177.3,177.29,3.18]
[1753876699254,2.99,177.32,177.29,107.28]
[1753876699551,2.99,177.32,177.31,3.18]
[1753876699751,2.99,177.32,177.29,107.28]
[1753876699957,2.99,177.32,177.3,3.18]
[1753876700155,2.99,177.32,177.31,3.18]
[1753876700953,2.99,177.33,177.32,3.18]
[1753876703256,5.639,177.36,177.32,8.8201]
[1753876703566,3.01,177.34,177.33,110.39]
[1753876703859,3.01,177.34,177.33,116.0298]
[1753876704058,3.01,177.34,177.33,110.39]
[1753876704357,11.2716,177.46,177.34,3.13]
[1753876704358,3.01,177.38,177.34,3.13]
[1753876704560,3.01,177.37,177.33,107.26]
[1753876704752,15.94733094,177.46,177.33,110.09785573]
[1753876704753,3.01,177.45,177.33,110.09785573]
[1753876704958,3.01,177.4,177.34,3.13]
[1753876705161,2.83785573,177.41,177.33,110.09785573]
[1753876705458,3.01,177.4,177.34,3.13]
[1753876706061,8.6478,177.4,177.36,5.6388]
[1753876706261,3.01,177.39,177.37,107.22]
[1753876706657,8.6481,177.39,177.37,107.22]
[1753876707065,3.01,177.38,177.37,107.22]
[1753876707367,8.6482,177.38,177.37,107.22]
[1753876708059,3.01,177.38,177.34,107.2]
[1753876708259,3.01,177.36,177.34,107.2]
[1753876708865,3.01,177.35,177.34,107.2]
[1753876709657,8.6486,177.37,177.34,110.33]
[1753876709862,3.01,177.36,177.35,3.13]
[1753876710561,8.6488,177.36,177.35,3.13]
[1753876710967,3.01,177.36,177.35,3.13]
[1753876711357,2.83785573,177.41,177.35,3.13]
[1753876711562,8.6481,177.39,177.35,8.769]
[1753876711862,3.01,177.4,177.35,3.13]
[1753876712064,3.01,177.4,177.36,3.13]
[1753876712368,2.83785573,177.41,177.36,3.13]
[1753876712572,3.01,177.4,177.35,3.13]
[1753876712866,3.01,177.4,177.34,107.2]
[1753876712867,3.01,177.4,177.36,3.13]
[1753876713169,3.01,177.37,177.36,3.13]
[1753876713970,8.648,177.39,177.36,3.13]
[1753876714269,2.83785573,177.41,177.34,107.2]
[1753876714762,3.01,177.4,177.34,107.2]
[1753876714959,3.01,177.38,177.34,107.2]
[1753876715164,2.83785573,177.37,177.34,107.16]
[1753876715365,3.01,177.36,177.34,107.16]
[1753876715764,3.01,177.35,177.34,110.29]
[1753876715970,5.6392,177.35,177.34,107.16]
[1753876716167,3.01,177.35,177.34,110.29]
[1753876716560,5.6392,177.35,177.34,107.16]
[1753876716760,8.6492,177.35,177.34,107.16]
[1753876716963,8.6492,177.35,177.34,110.29]
[1753876717169,8.6486,177.37,177.35,3.13]
[1753876717367,8.6486,177.37,177.36,3.13]
[1753876717561,3.01,177.37,177.34,107.16]
[1753876717766,8.6489,177.36,177.35,3.13]
[1753876718163,3.01,177.38,177.35,3.13]
[1753876718369,8.6486,177.37,177.36,3.13]
[1753876718673,3.01,177.4,177.36,3.13]
[1753876718874,3.01,177.39,177.36,3.13]
[1753876719175,3.01,177.38,177.37,3.13]
[1753876719367,3.01,177.4,177.38,3.13]
[1753876719673,8.6476,177.4,177.39,3.13]
[1753876720171,3.01,177.4,177.39,3.13]
[1753876721175,8.6476,177.4,177.39,3.13]
[1753876721472,3.01,177.42,177.36,3.13]
[1753876721874,5.6376,177.4,177.37,5.6382]
[1753876722181,8.6476,177.4,177.39,3.13]
[1753876723075,3.01,177.42,177.36,3.13]
[1753876723677,8.6478,177.4,177.37,3.13]
[1753876724070,3.01,177.39,177.38,3.13]
[1753876724683,8.6481,177.39,177.38,3.13]
[1753876725177,5.6377,177.4,177.38,3.13]
[1753876725483,3.01,177.4,177.39,3.13]
[1753876725677,3.01,177.4,177.32,2.83785573]
[1753876725883,3.01,177.38,177.34,3.13]
[1753876726086,2.83785573,177.37,177.24,3.13]
[1753876726286,3.01,177.34,177.27,2.83785573]
[1753876726486,2.83785573,177.33,177.27,3.13]
[1753876726780,3.01,177.31,177.28,5.6414]
[1753876727088,3.01,177.31,177.3,3.13]
[1753876727794,3.01,177.3,177.29,110.21]
[1753876728083,3.01,177.3,177.29,3.13]
[1753876728882,5.6406,177.31,177.29,3.13]
[1753876729075,8.6506,177.31,177.3,3.13]
[1753876729277,3.01,177.33,177.3,3.13]
[1753876729884,8.6501,177.33,177.31,3.13]
[1753876730187,3.01,177.35,177.32,3.13]